[Event "Titled Tuesday Blitz January 31 Late 2023"]
[White "Salem, A.R. Saleh"]
[Black "Paichadze, Luka"]
[WhiteFideId "9301348"]
[BlackFideId "13602934"]
[WhiteElo "2677"]
[BlackElo "2515"]
[Result "1-0"]
[Round "10"]
[TimeControl "180+2"]
[Date "2023.01.31"]
[WhiteClock "0:00:11"]
[BlackClock "0:00:12"]

1. d4 {[%clk 0:02:59]}  Nf6 {[%clk 0:02:59]} 2. c4 {[%clk 0:02:59]}  e6 {[%clk 0:03:00]} 3. Nc3 {[%clk 0:02:59]}  Bb4 {[%clk 0:03:00]} 4. a3 {[%clk 0:03:00]}  Bxc3+ {[%clk 0:03:00]} 5. bxc3 {[%clk 0:03:01]}  O-O {[%clk 0:02:54]} 6. f3 {[%clk 0:03:01]}  d6 {[%clk 0:02:54]} 7. e4 {[%clk 0:03:01]}  Nc6 {[%clk 0:02:53]} 8. Bd3 {[%clk 0:03:01]}  b6 {[%clk 0:02:51]} 9. Ne2 {[%clk 0:03:00]}  Ba6 {[%clk 0:02:49]} 10. Bg5 {[%clk 0:03:00]}  Na5 {[%clk 0:02:48]} 11. f4 {[%clk 0:02:22]}  h6 {[%clk 0:02:40]} 12. Bh4 {[%clk 0:02:08]}  Bxc4 {[%clk 0:02:37]} 13. e5 {[%clk 0:01:54]}  dxe5 {[%clk 0:02:35]} 14. fxe5 {[%clk 0:01:55]}  g5 {[%clk 0:02:35]} 15. exf6 {[%clk 0:01:48]}  gxh4 {[%clk 0:02:35]} 16. O-O {[%clk 0:01:47]}  Qd5 {[%clk 0:02:24]} 17. Nf4 {[%clk 0:01:37]}  Qg5 {[%clk 0:02:21]} 18. Kh1 {[%clk 0:01:18]}  Kh8 {[%clk 0:01:51]} 19. Nh3 {[%clk 0:01:09]}  Qg8 {[%clk 0:01:39]} 20. Rf4 {[%clk 0:00:51]}  Bxd3 {[%clk 0:01:38]} 21. Qxd3 {[%clk 0:00:51]}  Qh7 {[%clk 0:01:37]} 22. Qe2 {[%clk 0:00:39]}  Rg8 {[%clk 0:01:34]} 23. Rxh4 {[%clk 0:00:39]}  Rg6 {[%clk 0:01:33]} 24. Nf4 {[%clk 0:00:35]}  Rg5 {[%clk 0:01:27]} 25. Rf1 {[%clk 0:00:25]}  Rag8 {[%clk 0:01:23]} 26. Qf3 {[%clk 0:00:23]}  Rf5 {[%clk 0:01:16]} 27. Qe2 {[%clk 0:00:20]}  Rgg5 {[%clk 0:01:08]} 28. Nh3 {[%clk 0:00:08]}  Rxf1+ {[%clk 0:01:02]} 29. Qxf1 {[%clk 0:00:09]}  Rf5 {[%clk 0:01:02]} 30. Rf4 {[%clk 0:00:09]}  Rxf4 {[%clk 0:01:00]} 31. Qxf4 {[%clk 0:00:10]}  Qb1+ {[%clk 0:00:50]} 32. Ng1 {[%clk 0:00:10]}  Qg6 {[%clk 0:00:47]} 33. h3 {[%clk 0:00:10]}  Nb3 {[%clk 0:00:39]} 34. Nf3 {[%clk 0:00:10]}  Kh7 {[%clk 0:00:34]} 35. Qxc7 {[%clk 0:00:08]}  Qxf6 {[%clk 0:00:32]} 36. Qxa7 {[%clk 0:00:09]}  Nc1 {[%clk 0:00:27]} 37. Qxb6 {[%clk 0:00:08]}  Nd3 {[%clk 0:00:28]} 38. Qb1 {[%clk 0:00:09]}  Qf5 {[%clk 0:00:26]} 39. Kg1 {[%clk 0:00:10]}  Qe4 {[%clk 0:00:23]} 40. a4 {[%clk 0:00:08]}  Qe3+ {[%clk 0:00:23]} 41. Kh2 {[%clk 0:00:08]}  Qf4+ {[%clk 0:00:23]} 42. Kh1 {[%clk 0:00:09]}  Qe4 {[%clk 0:00:23]} 43. Qf1 {[%clk 0:00:08]}  Nf4 {[%clk 0:00:21]} 44. Nd2 {[%clk 0:00:07]}  Qe3 {[%clk 0:00:20]} 45. Nc4 {[%clk 0:00:08]}  Qe4 {[%clk 0:00:19]} 46. Nd6 {[%clk 0:00:08]}  Qe3 {[%clk 0:00:18]} 47. Nxf7 {[%clk 0:00:08]}  Ne2 {[%clk 0:00:14]} 48. Kh2 {[%clk 0:00:08]}  Qg3+ {[%clk 0:00:14]} 49. Kh1 {[%clk 0:00:09]}  Qe3 {[%clk 0:00:14]} 50. Qb1+ {[%clk 0:00:09]}  Kg7 {[%clk 0:00:13]} 51. Ne5 {[%clk 0:00:10]}  Ng3+ {[%clk 0:00:13]} 52. Kh2 {[%clk 0:00:10]}  Qf4 {[%clk 0:00:11]} 53. Qg6+ {[%clk 0:00:10]}  Kf8 {[%clk 0:00:10]} 54. Qf7+ {[%clk 0:00:10]}  Qxf7 {[%clk 0:00:10]} 55. Nxf7 {[%clk 0:00:11]}  Ne2 {[%clk 0:00:09]} 56. Nd6 {[%clk 0:00:08]}  Nxc3 {[%clk 0:00:09]} 57. a5 {[%clk 0:00:09]}  Ke7 {[%clk 0:00:09]} 58. a6 {[%clk 0:00:10]}  Nd5 {[%clk 0:00:08]} 59. a7 {[%clk 0:00:09]}  Nc7 {[%clk 0:00:09]} 60. Nb5 {[%clk 0:00:08]}  Na8 {[%clk 0:00:09]} 61. g4 {[%clk 0:00:09]}  Kd7 {[%clk 0:00:10]} 62. h4 {[%clk 0:00:09]}  Kc6 {[%clk 0:00:10]} 63. g5 {[%clk 0:00:10]}  hxg5 {[%clk 0:00:11]} 64. hxg5 {[%clk 0:00:10]}  Kxb5 {[%clk 0:00:12]} 65. g6 {[%clk 0:00:11]} 1-0


[Site "https://www.chess.com"]

[Event "Titled Tuesday Blitz January 31 Late 2023"]
[White "Yuan, Qingyu"]
[Black "Pranav, V"]
[WhiteFideId "8609772"]
[BlackFideId "25060783"]
[WhiteElo "2373"]
[BlackElo "2597"]
[Result "0-1"]
[Round "10"]
[TimeControl "180+2"]
[Date "2023.01.31"]
[WhiteClock "0:00:16"]
[BlackClock "0:00:06"]

1. e4 {[%clk 0:03:00]}  e5 {[%clk 0:02:58]} 2. Nf3 {[%clk 0:03:01]}  Nc6 {[%clk 0:02:58]} 3. Bb5 {[%clk 0:03:01]}  a6 {[%clk 0:02:58]} 4. Ba4 {[%clk 0:03:01]}  d6 {[%clk 0:02:59]} 5. Nc3 {[%clk 0:03:00]}  Bd7 {[%clk 0:02:59]} 6. Bxc6 {[%clk 0:03:00]}  bxc6 {[%clk 0:02:58]} 7. d4 {[%clk 0:03:00]}  f6 {[%clk 0:02:59]} 8. Be3 {[%clk 0:02:55]}  Ne7 {[%clk 0:02:57]} 9. Qd3 {[%clk 0:02:44]}  Ng6 {[%clk 0:02:56]} 10. O-O {[%clk 0:02:31]}  Be7 {[%clk 0:02:56]} 11. Rfe1 {[%clk 0:02:23]}  O-O {[%clk 0:02:56]} 12. h3 {[%clk 0:02:12]}  Qc8 {[%clk 0:02:53]} 13. Rad1 {[%clk 0:01:59]}  Rf7 {[%clk 0:02:42]} 14. Kh2 {[%clk 0:01:55]}  Nf8 {[%clk 0:02:40]} 15. Qc4 {[%clk 0:01:50]}  Be6 {[%clk 0:02:37]} 16. Qxc6 {[%clk 0:01:46]}  Rb8 {[%clk 0:02:37]} 17. b3 {[%clk 0:01:44]}  Bd7 {[%clk 0:02:34]} 18. Qc4 {[%clk 0:01:43]}  c6 {[%clk 0:02:34]} 19. Ne2 {[%clk 0:01:37]}  Qc7 {[%clk 0:00:46]} 20. Ng3 {[%clk 0:01:35]}  Qc8 {[%clk 0:00:42]} 21. Kg1 {[%clk 0:01:35]}  h6 {[%clk 0:00:41]} 22. Nh4 {[%clk 0:01:30]}  Be6 {[%clk 0:00:37]} 23. Qe2 {[%clk 0:01:29]}  d5 {[%clk 0:00:34]} 24. Nhf5 {[%clk 0:01:06]}  Bb4 {[%clk 0:00:31]} 25. Bd2 {[%clk 0:01:03]}  Bxd2 {[%clk 0:00:26]} 26. Rxd2 {[%clk 0:01:02]}  Qc7 {[%clk 0:00:20]} 27. c3 {[%clk 0:00:53]}  dxe4 {[%clk 0:00:13]} 28. Qxe4 {[%clk 0:00:47]}  Re8 {[%clk 0:00:12]} 29. dxe5 {[%clk 0:00:43]}  Bxf5 {[%clk 0:00:11]} 30. Qxf5 {[%clk 0:00:41]}  fxe5 {[%clk 0:00:10]} 31. Qg4 {[%clk 0:00:39]}  Re6 {[%clk 0:00:08]} 32. Ne4 {[%clk 0:00:39]}  Rg6 {[%clk 0:00:08]} 33. Qe2 {[%clk 0:00:38]}  Ne6 {[%clk 0:00:08]} 34. Ng3 {[%clk 0:00:36]}  Rg5 {[%clk 0:00:07]} 35. h4 {[%clk 0:00:34]}  Nf4 {[%clk 0:00:05]} 36. Qe4 {[%clk 0:00:33]}  Rg6 {[%clk 0:00:05]} 37. Qxe5 {[%clk 0:00:31]}  Re6 {[%clk 0:00:05]} 38. Qxe6 {[%clk 0:00:27]}  Nxe6 {[%clk 0:00:06]} 39. Rxe6 {[%clk 0:00:28]}  Qf4 {[%clk 0:00:07]} 40. Rd8+ {[%clk 0:00:25]}  Kh7 {[%clk 0:00:07]} 41. Re5 {[%clk 0:00:21]}  Qxe5 {[%clk 0:00:07]} 42. Rd3 {[%clk 0:00:19]}  Qe1+ {[%clk 0:00:06]} 43. Kh2 {[%clk 0:00:19]}  Rxf2 {[%clk 0:00:07]} 44. h5 {[%clk 0:00:16]}  Rxa2 {[%clk 0:00:06]} 45. Re3 {[%clk 0:00:16]}  Qxe3 {[%clk 0:00:06]} 0-1


[Site "https://www.chess.com"]

[Event "Titled Tuesday Blitz January 31 Late 2023"]
[White "Kamsky, Gata"]
[Black "Santos Ruiz, Miguel"]
[WhiteFideId "2000024"]
[BlackFideId "22291482"]
[WhiteElo "2665"]
[BlackElo "2590"]
[Result "1/2-1/2"]
[Round "10"]
[TimeControl "180+2"]
[Date "2023.01.31"]
[WhiteClock "0:00:04"]
[BlackClock "0:00:08"]

1. d4 {[%clk 0:03:00]}  Nf6 {[%clk 0:02:59]} 2. Bf4 {[%clk 0:02:54]}  d5 {[%clk 0:02:57]} 3. e3 {[%clk 0:02:52]}  c5 {[%clk 0:02:57]} 4. c3 {[%clk 0:02:51]}  Nc6 {[%clk 0:02:57]} 5. Nd2 {[%clk 0:02:50]}  e6 {[%clk 0:02:55]} 6. Ngf3 {[%clk 0:02:49]}  Be7 {[%clk 0:02:55]} 7. Bd3 {[%clk 0:02:45]}  Nh5 {[%clk 0:02:55]} 8. Bg3 {[%clk 0:02:37]}  g6 {[%clk 0:02:54]} 9. Qe2 {[%clk 0:02:20]}  cxd4 {[%clk 0:02:36]} 10. exd4 {[%clk 0:02:18]}  O-O {[%clk 0:02:29]} 11. O-O {[%clk 0:02:16]}  Nxg3 {[%clk 0:02:28]} 12. hxg3 {[%clk 0:02:13]}  h5 {[%clk 0:02:18]} 13. Ne5 {[%clk 0:02:08]}  Nxe5 {[%clk 0:02:17]} 14. Qxe5 {[%clk 0:02:07]}  Bd6 {[%clk 0:02:06]} 15. Qe2 {[%clk 0:02:01]}  Bd7 {[%clk 0:01:58]} 16. a4 {[%clk 0:01:55]}  Qf6 {[%clk 0:01:53]} 17. Nf3 {[%clk 0:01:50]}  Rac8 {[%clk 0:01:31]} 18. Ne5 {[%clk 0:01:47]}  Bxe5 {[%clk 0:01:30]} 19. dxe5 {[%clk 0:01:45]}  Qg7 {[%clk 0:01:29]} 20. a5 {[%clk 0:01:41]}  Rc5 {[%clk 0:01:28]} 21. Qe3 {[%clk 0:01:37]}  Rfc8 {[%clk 0:01:27]} 22. Rfd1 {[%clk 0:01:35]}  a6 {[%clk 0:01:17]} 23. Bc2 {[%clk 0:01:24]}  Qf8 {[%clk 0:00:58]} 24. Rd4 {[%clk 0:01:15]}  Rc4 {[%clk 0:00:58]} 25. Bd3 {[%clk 0:00:55]}  Rxd4 {[%clk 0:00:55]} 26. Qxd4 {[%clk 0:00:55]}  Qc5 {[%clk 0:00:54]} 27. Qxc5 {[%clk 0:00:25]}  Rxc5 {[%clk 0:00:54]} 28. f3 {[%clk 0:00:18]}  Bb5 {[%clk 0:00:53]} 29. Bxb5 {[%clk 0:00:11]}  Rxb5 {[%clk 0:00:53]} 30. Ra2 {[%clk 0:00:11]}  f6 {[%clk 0:00:37]} 31. exf6 {[%clk 0:00:10]}  Kf7 {[%clk 0:00:37]} 32. Kf2 {[%clk 0:00:11]}  Kxf6 {[%clk 0:00:38]} 33. Ke3 {[%clk 0:00:11]}  e5 {[%clk 0:00:37]} 34. b4 {[%clk 0:00:11]}  d4+ {[%clk 0:00:30]} 35. Kd3 {[%clk 0:00:11]}  dxc3 {[%clk 0:00:30]} 36. Kxc3 {[%clk 0:00:12]}  Rd5 {[%clk 0:00:30]} 37. Rc2 {[%clk 0:00:10]}  g5 {[%clk 0:00:19]} 38. Kb3 {[%clk 0:00:09]}  Rd7 {[%clk 0:00:18]} 39. Re2 {[%clk 0:00:08]}  Kf5 {[%clk 0:00:18]} 40. Re4 {[%clk 0:00:08]}  Rd4 {[%clk 0:00:11]} 41. Re2 {[%clk 0:00:05]}  h4 {[%clk 0:00:11]} 42. gxh4 {[%clk 0:00:05]}  gxh4 {[%clk 0:00:12]} 43. Kc3 {[%clk 0:00:04]}  Kf4 {[%clk 0:00:12]} 44. Re1 {[%clk 0:00:04]}  Kf5 {[%clk 0:00:09]} 45. Re2 {[%clk 0:00:04]}  Kf4 {[%clk 0:00:09]} 46. Re1 {[%clk 0:00:04]}  Kf5 {[%clk 0:00:08]} 47. Re2 {[%clk 0:00:04]} 1/2-1/2


[Site "https://www.chess.com"]

[Event "Titled Tuesday Blitz January 31 Late 2023"]
[White "Urazayev, Arystanbek"]
[Black "Fernandez Guillen, Ernesto J."]
[WhiteFideId "13709810"]
[BlackFideId "3512428"]
[WhiteElo "2460"]
[BlackElo "2477"]
[Result "0-1"]
[Round "10"]
[TimeControl "180+2"]
[Date "2023.01.31"]
[WhiteClock "0:00:03"]
[BlackClock "0:00:45"]

1. e4 {[%clk 0:03:00]}  e5 {[%clk 0:03:00]} 2. Nf3 {[%clk 0:03:01]}  Nc6 {[%clk 0:03:00]} 3. Nc3 {[%clk 0:03:01]}  g6 {[%clk 0:03:00]} 4. Bc4 {[%clk 0:02:58]}  Bg7 {[%clk 0:03:00]} 5. d3 {[%clk 0:02:58]}  h6 {[%clk 0:03:00]} 6. Be3 {[%clk 0:02:56]}  Nge7 {[%clk 0:02:51]} 7. Qd2 {[%clk 0:02:50]}  d6 {[%clk 0:02:50]} 8. a3 {[%clk 0:02:45]}  Nd4 {[%clk 0:02:32]} 9. Bxd4 {[%clk 0:02:38]}  exd4 {[%clk 0:02:33]} 10. Ne2 {[%clk 0:02:26]}  c5 {[%clk 0:02:31]} 11. O-O {[%clk 0:02:25]}  O-O {[%clk 0:02:31]} 12. h3 {[%clk 0:02:23]}  d5 {[%clk 0:02:25]} 13. exd5 {[%clk 0:02:23]}  Nxd5 {[%clk 0:02:26]} 14. Nf4 {[%clk 0:02:22]}  Nb6 {[%clk 0:02:20]} 15. Bb3 {[%clk 0:02:11]}  Qd6 {[%clk 0:02:19]} 16. Rfe1 {[%clk 0:02:03]}  Bd7 {[%clk 0:02:17]} 17. h4 {[%clk 0:01:51]}  Rfe8 {[%clk 0:01:44]} 18. Rxe8+ {[%clk 0:01:35]}  Rxe8 {[%clk 0:01:45]} 19. a4 {[%clk 0:01:35]}  Bc6 {[%clk 0:01:44]} 20. a5 {[%clk 0:01:23]}  Nd7 {[%clk 0:01:43]} 21. Re1 {[%clk 0:01:04]}  Ne5 {[%clk 0:01:19]} 22. Nxe5 {[%clk 0:00:56]}  Rxe5 {[%clk 0:01:14]} 23. Rxe5 {[%clk 0:00:46]}  Bxe5 {[%clk 0:01:15]} 24. Ne2 {[%clk 0:00:35]}  Kg7 {[%clk 0:01:15]} 25. Qe1 {[%clk 0:00:22]}  Qf6 {[%clk 0:01:14]} 26. f3 {[%clk 0:00:17]}  Bd6 {[%clk 0:01:08]} 27. Ng3 {[%clk 0:00:14]}  Qf4 {[%clk 0:01:03]} 28. Ne4 {[%clk 0:00:14]}  Qh2+ {[%clk 0:00:57]} 29. Kf1 {[%clk 0:00:14]}  Bxe4 {[%clk 0:00:50]} 30. Qxe4 {[%clk 0:00:13]}  Bg3 {[%clk 0:00:50]} 31. Ke2 {[%clk 0:00:02]}  Qxg2+ {[%clk 0:00:47]} 32. Kd1 {[%clk 0:00:02]}  Qf1+ {[%clk 0:00:46]} 33. Kd2 {[%clk 0:00:03]}  g5 {[%clk 0:00:44]} 34. hxg5 {[%clk 0:00:03]}  hxg5 {[%clk 0:00:45]} 0-1


[Site "https://www.chess.com"]

[Event "Titled Tuesday Blitz January 31 Late 2023"]
[White "Kazakouski, Valery"]
[Black "Maximov, Dmitry"]
[WhiteFideId "13507443"]
[BlackFideId "14105659"]
[WhiteElo "2539"]
[BlackElo "2497"]
[Result "0-1"]
[Round "10"]
[TimeControl "180+2"]
[Date "2023.01.31"]
[WhiteClock "0:00:32"]
[BlackClock "0:00:53"]

1. Nf3 {[%clk 0:02:57]}  Nf6 {[%clk 0:02:59]} 2. c4 {[%clk 0:02:57]}  c5 {[%clk 0:02:59]} 3. b3 {[%clk 0:02:57]}  g6 {[%clk 0:02:57]} 4. Bb2 {[%clk 0:02:58]}  Bg7 {[%clk 0:02:58]} 5. g3 {[%clk 0:02:58]}  O-O {[%clk 0:02:58]} 6. Bg2 {[%clk 0:02:58]}  d6 {[%clk 0:02:56]} 7. d4 {[%clk 0:02:57]}  cxd4 {[%clk 0:02:53]} 8. Qxd4 {[%clk 0:02:58]}  Nc6 {[%clk 0:02:52]} 9. Qd2 {[%clk 0:02:58]}  Ne4 {[%clk 0:02:47]} 10. Qc1 {[%clk 0:02:58]}  Qa5+ {[%clk 0:02:46]} 11. Nbd2 {[%clk 0:02:58]}  Nxd2 {[%clk 0:02:30]} 12. Nxd2 {[%clk 0:02:57]}  Nd4 {[%clk 0:02:27]} 13. e3 {[%clk 0:02:51]}  Ne6 {[%clk 0:02:25]} 14. Bxg7 {[%clk 0:02:51]}  Nxg7 {[%clk 0:02:24]} 15. O-O {[%clk 0:02:49]}  a6 {[%clk 0:02:24]} 16. Qb2 {[%clk 0:02:45]}  Rb8 {[%clk 0:02:23]} 17. b4 {[%clk 0:02:45]}  Qh5 {[%clk 0:02:23]} 18. Nb3 {[%clk 0:02:42]}  Bh3 {[%clk 0:02:22]} 19. Rac1 {[%clk 0:02:40]}  Ne6 {[%clk 0:02:22]} 20. f4 {[%clk 0:02:36]}  Rfc8 {[%clk 0:02:16]} 21. Bf3 {[%clk 0:02:33]}  Bg4 {[%clk 0:02:15]} 22. Bd5 {[%clk 0:02:33]}  b5 {[%clk 0:02:08]} 23. a3 {[%clk 0:02:25]}  Be2 {[%clk 0:02:03]} 24. Bxe6 {[%clk 0:02:09]}  fxe6 {[%clk 0:02:01]} 25. c5 {[%clk 0:02:08]}  Bxf1 {[%clk 0:01:57]} 26. Rxf1 {[%clk 0:02:09]}  Qd5 {[%clk 0:01:54]} 27. Qc2 {[%clk 0:02:05]}  Qc4 {[%clk 0:01:52]} 28. Rc1 {[%clk 0:01:52]}  Qxc2 {[%clk 0:01:47]} 29. Rxc2 {[%clk 0:01:53]}  Kf7 {[%clk 0:01:47]} 30. Kf2 {[%clk 0:01:53]}  Rc7 {[%clk 0:01:41]} 31. e4 {[%clk 0:01:50]}  Rbc8 {[%clk 0:01:41]} 32. Ke3 {[%clk 0:01:50]}  Kf6 {[%clk 0:01:40]} 33. e5+ {[%clk 0:01:41]}  dxe5 {[%clk 0:01:39]} 34. fxe5+ {[%clk 0:01:41]}  Kxe5 {[%clk 0:01:38]} 35. Rd2 {[%clk 0:01:41]}  Rf8 {[%clk 0:01:35]} 36. Nd4 {[%clk 0:01:38]}  Rf1 {[%clk 0:01:34]} 37. Nf3+ {[%clk 0:01:38]}  Kf6 {[%clk 0:01:33]} 38. h4 {[%clk 0:01:35]}  h6 {[%clk 0:01:32]} 39. g4 {[%clk 0:01:33]}  Ra1 {[%clk 0:01:31]} 40. Rd3 {[%clk 0:01:33]}  e5 {[%clk 0:01:27]} 41. Ke4 {[%clk 0:01:32]}  Ra2 {[%clk 0:01:23]} 42. Ke3 {[%clk 0:01:17]}  Ke6 {[%clk 0:01:19]} 43. Nd2 {[%clk 0:01:16]}  Rc8 {[%clk 0:01:16]} 44. Ne4 {[%clk 0:01:10]}  Rh2 {[%clk 0:01:16]} 45. Nf2 {[%clk 0:00:52]}  Rxh4 {[%clk 0:01:15]} 46. Kf3 {[%clk 0:00:46]}  g5 {[%clk 0:01:10]} 47. Kg3 {[%clk 0:00:46]}  h5 {[%clk 0:01:08]} 48. Re3 {[%clk 0:00:46]}  Rf8 {[%clk 0:01:01]} 49. gxh5 {[%clk 0:00:40]}  Kd5 {[%clk 0:00:53]} 50. Ng4 {[%clk 0:00:36]}  e4 {[%clk 0:00:54]} 51. Re1 {[%clk 0:00:32]}  Rf3+ {[%clk 0:00:53]} 0-1


[Site "https://www.chess.com"]

[Event "Titled Tuesday Blitz January 31 Late 2023"]
[White "Mekhitarian, Krikor Sevag"]
[Black "Svane, Rasmus"]
[WhiteFideId "2107660"]
[BlackFideId "4657101"]
[WhiteElo "2537"]
[BlackElo "2623"]
[Result "0-1"]
[Round "10"]
[TimeControl "180+2"]
[Date "2023.01.31"]
[WhiteClock "0:00:01"]
[BlackClock "0:00:12"]

1. e4 {[%clk 0:02:51]}  c6 {[%clk 0:03:00]} 2. Nf3 {[%clk 0:02:44]}  d5 {[%clk 0:03:01]} 3. Nc3 {[%clk 0:02:44]}  dxe4 {[%clk 0:03:01]} 4. Nxe4 {[%clk 0:02:45]}  Nf6 {[%clk 0:03:02]} 5. Qe2 {[%clk 0:02:44]}  Nxe4 {[%clk 0:03:03]} 6. Qxe4 {[%clk 0:02:45]}  Qa5 {[%clk 0:03:03]} 7. b3 {[%clk 0:02:25]}  Bf5 {[%clk 0:03:01]} 8. Qe3 {[%clk 0:02:20]}  e6 {[%clk 0:02:55]} 9. Bb2 {[%clk 0:02:14]}  Nd7 {[%clk 0:02:45]} 10. Bd3 {[%clk 0:02:09]}  Bxd3 {[%clk 0:02:43]} 11. Qxd3 {[%clk 0:02:09]}  Qd5 {[%clk 0:02:44]} 12. Qe2 {[%clk 0:02:07]}  Nf6 {[%clk 0:02:42]} 13. O-O {[%clk 0:02:07]}  Bd6 {[%clk 0:02:42]} 14. Rfe1 {[%clk 0:02:07]}  O-O {[%clk 0:02:42]} 15. h3 {[%clk 0:02:07]}  Rfe8 {[%clk 0:02:40]} 16. d4 {[%clk 0:02:06]}  a5 {[%clk 0:02:37]} 17. c4 {[%clk 0:02:06]}  Qf5 {[%clk 0:02:35]} 18. a4 {[%clk 0:02:01]}  h6 {[%clk 0:02:35]} 19. Rad1 {[%clk 0:02:01]}  Bb4 {[%clk 0:02:34]} 20. Rf1 {[%clk 0:02:01]}  Rad8 {[%clk 0:02:32]} 21. Ne5 {[%clk 0:01:59]}  Nd7 {[%clk 0:02:32]} 22. Nd3 {[%clk 0:01:58]}  Bd6 {[%clk 0:02:28]} 23. Bc3 {[%clk 0:01:58]}  Bc7 {[%clk 0:02:23]} 24. Rfe1 {[%clk 0:01:57]}  Nf6 {[%clk 0:02:11]} 25. Ne5 {[%clk 0:01:49]}  Nd7 {[%clk 0:01:51]} 26. Nd3 {[%clk 0:01:41]}  Qg5 {[%clk 0:01:50]} 27. Bd2 {[%clk 0:01:33]}  Qf6 {[%clk 0:01:48]} 28. Bc3 {[%clk 0:01:25]}  Qg6 {[%clk 0:01:46]} 29. Qe3 {[%clk 0:01:14]}  Qf5 {[%clk 0:01:41]} 30. Rd2 {[%clk 0:00:57]}  Re7 {[%clk 0:01:38]} 31. Rde2 {[%clk 0:00:57]}  Rde8 {[%clk 0:01:38]} 32. Qe4 {[%clk 0:00:52]}  Qxe4 {[%clk 0:01:35]} 33. Rxe4 {[%clk 0:00:53]}  Rd8 {[%clk 0:01:35]} 34. Kf1 {[%clk 0:00:52]}  Ree8 {[%clk 0:01:35]} 35. Ke2 {[%clk 0:00:50]}  Rb8 {[%clk 0:01:35]} 36. Rc1 {[%clk 0:00:49]}  Rec8 {[%clk 0:01:35]} 37. Bd2 {[%clk 0:00:49]}  Rd8 {[%clk 0:01:23]} 38. Bc3 {[%clk 0:00:49]}  b5 {[%clk 0:01:19]} 39. axb5 {[%clk 0:00:44]}  cxb5 {[%clk 0:01:20]} 40. c5 {[%clk 0:00:45]}  Nf6 {[%clk 0:01:20]} 41. Rh4 {[%clk 0:00:36]}  Rd5 {[%clk 0:01:09]} 42. Bd2 {[%clk 0:00:35]}  g5 {[%clk 0:01:05]} 43. Rxh6 {[%clk 0:00:34]}  Kg7 {[%clk 0:01:06]} 44. Rxf6 {[%clk 0:00:33]}  Kxf6 {[%clk 0:01:07]} 45. Be3 {[%clk 0:00:30]}  a4 {[%clk 0:00:57]} 46. b4 {[%clk 0:00:29]}  e5 {[%clk 0:00:53]} 47. dxe5+ {[%clk 0:00:26]}  Bxe5 {[%clk 0:00:54]} 48. c6 {[%clk 0:00:22]}  Bc7 {[%clk 0:00:51]} 49. Rc3 {[%clk 0:00:20]}  Ke7 {[%clk 0:00:45]} 50. Nc5 {[%clk 0:00:19]}  Rc8 {[%clk 0:00:41]} 51. Ne4 {[%clk 0:00:18]}  f6 {[%clk 0:00:40]} 52. Bc5+ {[%clk 0:00:18]}  Ke6 {[%clk 0:00:41]} 53. Re3 {[%clk 0:00:18]}  Be5 {[%clk 0:00:38]} 54. Nc3 {[%clk 0:00:16]}  Rxc5 {[%clk 0:00:30]} 55. bxc5 {[%clk 0:00:16]}  a3 {[%clk 0:00:30]} 56. Nxb5 {[%clk 0:00:15]}  a2 {[%clk 0:00:31]} 57. Nd4+ {[%clk 0:00:15]}  Kd5 {[%clk 0:00:29]} 58. Nc2 {[%clk 0:00:13]}  a1=Q {[%clk 0:00:21]} 59. Nxa1 {[%clk 0:00:13]}  Bxa1 {[%clk 0:00:22]} 60. Rd3+ {[%clk 0:00:10]}  Bd4 {[%clk 0:00:19]} 61. g3 {[%clk 0:00:09]}  Rxc6 {[%clk 0:00:19]} 62. Kf3 {[%clk 0:00:10]}  Rxc5 {[%clk 0:00:17]} 63. Kg4 {[%clk 0:00:11]}  Ke5 {[%clk 0:00:15]} 64. f4+ {[%clk 0:00:10]}  gxf4 {[%clk 0:00:16]} 65. gxf4+ {[%clk 0:00:10]}  Ke4 {[%clk 0:00:17]} 66. Rd1 {[%clk 0:00:10]}  Rc8 {[%clk 0:00:14]} 67. Kh5 {[%clk 0:00:03]}  Kf5 {[%clk 0:00:13]} 68. Kh6 {[%clk 0:00:01]}  Be3 {[%clk 0:00:12]} 69. Kg7 {[%clk 0:00:01]}  Bxf4 {[%clk 0:00:12]} 70. Rd5+ {[%clk 0:00:01]}  Be5 {[%clk 0:00:12]} 0-1


[Site "https://www.chess.com"]

[Event "Titled Tuesday Blitz January 31 Late 2023"]
[White "Harshavardhan G B"]
[Black "Chigaev, Maksim"]
[WhiteFideId "25059009"]
[BlackFideId "4108116"]
[WhiteElo "2408"]
[BlackElo "2628"]
[Result "0-1"]
[Round "10"]
[TimeControl "180+2"]
[Date "2023.01.31"]
[WhiteClock "0:00:08"]
[BlackClock "0:00:17"]

1. d4 {[%clk 0:03:00]}  Nf6 {[%clk 0:03:00]} 2. c4 {[%clk 0:02:59]}  g6 {[%clk 0:03:00]} 3. Nc3 {[%clk 0:02:58]}  Bg7 {[%clk 0:03:01]} 4. e4 {[%clk 0:02:59]}  d6 {[%clk 0:03:01]} 5. Nf3 {[%clk 0:02:58]}  O-O {[%clk 0:03:01]} 6. Be2 {[%clk 0:02:58]}  e5 {[%clk 0:03:02]} 7. d5 {[%clk 0:02:58]}  a5 {[%clk 0:03:02]} 8. Bg5 {[%clk 0:02:57]}  h6 {[%clk 0:03:02]} 9. Be3 {[%clk 0:02:57]}  Ng4 {[%clk 0:03:01]} 10. Bc1 {[%clk 0:02:57]}  f5 {[%clk 0:03:01]} 11. exf5 {[%clk 0:02:57]}  gxf5 {[%clk 0:03:02]} 12. g3 {[%clk 0:02:57]}  Nf6 {[%clk 0:03:03]} 13. Nh4 {[%clk 0:02:57]}  Na6 {[%clk 0:03:01]} 14. f4 {[%clk 0:02:56]}  Nc5 {[%clk 0:02:59]} 15. O-O {[%clk 0:02:56]}  e4 {[%clk 0:02:57]} 16. Nb5 {[%clk 0:02:55]}  Ne8 {[%clk 0:02:43]} 17. Nd4 {[%clk 0:02:53]}  Bd7 {[%clk 0:02:38]} 18. Be3 {[%clk 0:02:52]}  a4 {[%clk 0:02:37]} 19. Qd2 {[%clk 0:02:42]}  c6 {[%clk 0:02:34]} 20. Rab1 {[%clk 0:02:26]}  cxd5 {[%clk 0:02:34]} 21. cxd5 {[%clk 0:02:27]}  Nc7 {[%clk 0:02:34]} 22. b4 {[%clk 0:02:15]}  axb3 {[%clk 0:02:32]} 23. axb3 {[%clk 0:02:16]}  Qf6 {[%clk 0:02:16]} 24. b4 {[%clk 0:02:15]}  Nd3 {[%clk 0:02:17]} 25. Bxd3 {[%clk 0:02:12]}  exd3 {[%clk 0:02:18]} 26. Qxd3 {[%clk 0:02:12]}  Qf7 {[%clk 0:02:18]} 27. Ne6 {[%clk 0:02:03]}  Nxe6 {[%clk 0:02:04]} 28. dxe6 {[%clk 0:02:04]}  Qxe6 {[%clk 0:02:04]} 29. Bd4 {[%clk 0:01:50]}  Qd5 {[%clk 0:01:21]} 30. Rfd1 {[%clk 0:01:10]}  Bc6 {[%clk 0:01:20]} 31. Qb3 {[%clk 0:00:39]}  Qxb3 {[%clk 0:01:18]} 32. Rxb3 {[%clk 0:00:40]}  Ba4 {[%clk 0:01:19]} 33. Bxg7 {[%clk 0:00:38]}  Bxb3 {[%clk 0:01:10]} 34. Bxf8 {[%clk 0:00:33]}  Bxd1 {[%clk 0:01:08]} 35. Bxd6 {[%clk 0:00:34]}  Kf7 {[%clk 0:01:04]} 36. Bc5 {[%clk 0:00:24]}  Ke6 {[%clk 0:01:01]} 37. Ng6 {[%clk 0:00:24]}  Ra2 {[%clk 0:00:55]} 38. Ne5 {[%clk 0:00:22]}  Bb3 {[%clk 0:00:54]} 39. Nf3 {[%clk 0:00:19]}  Bd5 {[%clk 0:00:50]} 40. Nd4+ {[%clk 0:00:19]}  Kf6 {[%clk 0:00:50]} 41. Bd6 {[%clk 0:00:18]}  Rg2+ {[%clk 0:00:47]} 42. Kf1 {[%clk 0:00:18]}  Rxh2 {[%clk 0:00:47]} 43. Be5+ {[%clk 0:00:19]}  Kg6 {[%clk 0:00:48]} 44. Nb5 {[%clk 0:00:18]}  Kh5 {[%clk 0:00:31]} 45. Nc7 {[%clk 0:00:16]}  Be4 {[%clk 0:00:27]} 46. Ne8 {[%clk 0:00:11]}  Kg4 {[%clk 0:00:27]} 47. Nd6 {[%clk 0:00:11]}  Kf3 {[%clk 0:00:25]} 48. Ke1 {[%clk 0:00:09]}  h5 {[%clk 0:00:22]} 49. b5 {[%clk 0:00:07]}  Rg2 {[%clk 0:00:21]} 50. b6 {[%clk 0:00:08]}  Rxg3 {[%clk 0:00:20]} 51. Nf7 {[%clk 0:00:07]}  Ke3 {[%clk 0:00:17]} 52. Ng5 {[%clk 0:00:08]}  Rg1# {[%clk 0:00:17]} 0-1


[Site "https://www.chess.com"]